bitfinex/quotes_ETHUSD_20250731
["timestamp","ask_amount","ask_price","bid_price","bid_amount"]
[1753964116578,6.64480477,3844.2,3844.0,0.90360001]
[1753964116786,4.1274,3844.1,3844.0,0.90360001]
[1753964116981,4.37122119,3844.1,3844.0,1e-08]
[1753964117189,4.37122119,3844.1,3844.0,0.75220001]
[1753964117378,4.24082119,3844.1,3844.0,1.08758565]
[1753964117583,0.24382119,3844.1,3844.0,4.25725682]
[1753964117775,0.002,3844.5,3844.1,0.7806]
[1753964117987,0.002,3844.5,3844.4,3.38178614]
[1753964118383,0.002,3844.5,3844.4,4.41578614]
[1753964118644,0.002,3844.5,3844.4,5.1174969]
[1753964119807,0.002,3844.5,3844.4,2.51631076]
[1753964120010,0.002,3844.5,3844.4,5.1174969]
[1753964123606,0.002,3844.5,3844.4,2.51631076]
[1753964123805,0.002,3844.5,3844.4,1.8146]
[1753964124420,0.002,3844.5,3844.4,1.6842]
[1753964126915,0.002,3844.5,3844.4,4.28538614]
[1753964127114,0.002,3844.5,3844.4,1.8146]
[1753964127483,0.002,3844.5,3844.4,4.41578614]
[1753964127893,0.002,3844.5,3844.4,5.11749144]
[1753964133132,0.002,3844.5,3844.4,9.99523602]
[1753964147866,0.002,3844.5,3844.4,10.54523602]
[1753964148042,1e-08,3844.5,3844.4,10.54523602]
[1753964148440,0.21875,3844.8,3844.7,3.37198317]
[1753964148638,0.21875,3844.8,3844.7,13.93346568]
[1753964148958,0.21875,3844.8,3844.7,14.96605585]
[1753964149665,0.002,3844.9,3844.8,3.15091552]
[1753964149848,0.002,3844.9,3844.8,6.92191552]
[1753964150056,0.002,3844.9,3844.8,10.12909884]
[1753964150252,1e-08,3844.9,3844.8,10.12909884]
[1753964150455,1e-08,3844.9,3844.8,10.25949884]
[1753964150963,1e-08,3845.1,3844.8,8.56029884]
[1753964151177,0.002,3845.5,3845.4,2.60050969]
[1753964151467,0.002,3845.5,3845.4,13.0788765]
[1753964151668,0.002,3845.5,3845.4,13.6683765]
[1753964153373,0.002,3845.5,3845.4,8.33153192]
[1753964153680,0.002,3845.5,3845.4,7.51803192]
[1753964153681,0.925,3845.5,3845.4,7.51803192]
[1753964154178,0.002,3845.5,3845.4,7.51803192]
[1753964154356,0.925,3845.5,3845.4,7.51803192]
[1753964156279,0.002,3845.5,3845.4,7.51803192]
[1753964157440,0.925,3845.5,3845.4,7.51803192]
[1753964159549,0.002,3845.5,3845.4,7.51803192]
[1753964159991,0.002,3845.5,3845.4,7.97713192]
[1753964160169,0.002,3845.5,3845.4,7.51803192]
[1753964160382,0.4755,3845.5,3845.4,7.51803192]
[1753964160701,1e-08,3845.5,3845.4,4.06503192]
[1753964161000,0.47350001,3845.5,3845.4,8.05503192]
[1753964161150,1e-08,3845.5,3845.4,8.05503192]
[1753964163156,0.002,3846.1,3846.0,2.600104]
[1753964163488,0.002,3846.1,3846.0,7.406804]
[1753964163740,0.002,3846.1,3846.0,7.537204]
[1753964163993,0.002,3846.1,3846.0,8.019204]
[1753964164195,0.002,3846.1,3846.0,8.449804]
[1753964164371,0.002,3846.1,3846.0,10.04257745]
[1753964165279,0.002,3846.1,3846.0,5.14097745]
[1753964165590,0.002,3846.5,3846.0,5.14097745]
[1753964165591,0.002,3846.5,3846.4,3.95503361]
[1753964165793,0.4525,3846.5,3846.4,7.52363361]
[1753964166105,0.002,3846.5,3846.4,7.52363361]
[1753964167477,0.002,3846.5,3846.4,8.00563361]
[1753964167865,0.002,3846.5,3846.4,12.88337819]
[1753964168165,0.002,3846.5,3846.4,14.73477111]
[1753964168729,0.002,3846.5,3846.4,9.85702653]
[1753964168911,0.8889,3846.5,3846.4,8.56982653]
[1753964169204,0.8889,3846.5,3846.4,6.71843361]
[1753964170013,0.8889,3846.5,3846.4,2.72943361]
[1753964170213,0.8889,3846.5,3846.4,6.71843361]
[1753964171692,0.8889,3846.5,3846.4,0.1296]
[1753964171990,0.8889,3846.5,3846.4,2.72943361]
[1753964172195,0.8889,3846.5,3846.4,6.71843361]
[1753964173721,0.8889,3846.5,3846.4,0.1296]
[1753964173917,0.8889,3846.5,3846.4,4.1186]
[1753964174219,0.8889,3846.5,3846.4,6.71843361]
[1753964175130,0.8889,3846.5,3846.4,4.1176]
[1753964175290,0.8889,3846.5,3846.4,6.71743361]
[1753964175694,0.8889,3846.5,3846.4,2.72943361]
[1753964175904,1.7148,3846.5,3846.1,3.988]
[1753964176237,0.8869,3846.4,3846.2,2.59991897]
[1753964176429,0.8869,3846.4,3846.2,0.1296]
[1753964176622,0.8869,3846.3,3846.2,0.1296]
[1753964180832,7.4303812,3846.3,3846.2,0.1296]
[1753964181046,3.37254207,3845.5,3845.4,0.001]
[1753964181251,7.8905,3845.5,3845.4,0.001]
[1753964181449,8.3269,3845.5,3845.4,0.001]
[1753964181649,3.0,3845.5,3845.4,0.001]
[1753964181828,3.8869,3845.5,3845.4,0.001]
[1753964182344,6.48734207,3845.5,3845.4,0.001]
[1753964182531,3.8869,3845.5,3845.4,0.001]
[1753964183723,7.25944207,3845.5,3845.4,0.001]
[1753964184330,7.38984207,3845.5,3845.4,0.001]
[1753964186285,7.93984207,3845.5,3845.4,0.001]
[1753964187523,7.93984207,3845.5,3845.0,0.001]
[1753964187524,3.91391259,3845.1,3845.0,0.001]
[1753964187717,6.36452147,3844.2,3844.1,0.04]
[1753964187914,10.48392147,3844.2,3844.1,0.04]
[1753964188134,17.88282147,3844.2,3844.1,0.04]
[1753964191311,16.99692147,3844.2,3844.1,0.04]
[1753964192417,17.88382147,3844.2,3844.1,0.04]
[1753964195826,16.99692147,3844.2,3844.1,0.04]
[1753964196028,17.88232147,3844.2,3844.1,0.04]
[1753964196525,18.43232147,3844.2,3844.1,0.04]
[1753964200977,18.43232147,3844.2,3844.1,0.041]
[1753964202881,18.43332147,3844.2,3844.1,0.041]
[1753964203971,6.95018914,3844.1,3844.0,1e-08]
[1753964204169,12.71333372,3844.1,3844.0,1e-08]
[1753964205770,16.70433372,3844.1,3844.0,1e-08]
[1753964209213,16.83742005,3844.1,3844.0,1e-08]
[1753964210250,6.53327547,3844.1,3844.0,1e-08]
[1753964210512,10.65467547,3844.1,3844.0,0.47100001]
[1753964210898,10.65467547,3844.1,3844.0,1e-08]
[1753964211201,3.66367547,3844.1,3844.0,0.47100001]
[1753964211399,3.66367547,3844.1,3844.0,0.93790001]
[1753964211400,6.85587547,3844.1,3844.0,0.93790001]
[1753964211614,9.85587547,3844.1,3844.0,0.93790001]
[1753964211819,6.85587547,3844.1,3844.0,0.93790001]
[1753964212682,9.85587547,3844.1,3844.0,0.93790001]
[1753964213212,9.85587547,3844.1,3844.0,0.47100001]
[1753964213920,10.30997547,3844.1,3844.0,1e-08]
[1753964214124,11.52947547,3844.1,3844.0,1e-08]
[1753964215124,11.09817547,3844.1,3844.0,1e-08]
[1753964215908,11.52947547,3844.1,3844.0,1e-08]
[1753964216655,12.32219368,3844.1,3844.0,1e-08]
[1753964221467,10.88679368,3844.1,3844.0,1e-08]
[1753964221609,12.32219368,3844.1,3844.0,1e-08]
[1753964223116,12.32419368,3844.1,3844.0,1e-08]
[1753964223973,12.08147547,3844.1,3844.0,1e-08]
[1753964224178,12.32431277,3844.1,3844.0,1e-08]
[1753964224473,11.89301277,3844.1,3844.0,1e-08]
[1753964224679,3.0,3844.0,3843.4,0.43530001]
[1753964224849,5.60179523,3843.5,3843.4,0.43530001]
[1753964225053,16.23619523,3843.5,3843.4,0.43530001]
[1753964225270,3.0,3843.4,3843.1,0.04]
[1753964225477,6.72338864,3843.3,3843.1,0.04]
[1753964225939,4.1214,3843.3,3843.1,0.04]
[1753964226241,6.7233398,3843.3,3843.1,0.04]
[1753964226443,2.60199833,3843.2,3843.1,0.04]
[1753964227262,5.60199833,3843.2,3843.1,0.04]
[1753964231892,7.89489833,3843.2,3843.1,0.04]
[1753964232210,8.13831393,3843.2,3843.1,1e-08]
[1753964233678,6.97583689,3842.7,3842.6,1e-08]
[1753964233991,22.73339707,3842.7,3842.6,1e-08]
[1753964234187,3.97617555,3842.2,3842.1,1e-08]
[1753964234393,22.49132013,3842.2,3842.1,1e-08]
[1753964234610,23.41072013,3842.2,3842.1,1e-08]
[1753964236485,12.94317555,3842.2,3842.1,1e-08]
[1753964236691,17.52387555,3842.2,3842.1,1e-08]
[1753964236890,17.98397555,3842.2,3842.1,1e-08]
[1753964237380,18.53397555,3842.2,3842.1,1e-08]
[1753964237582,6.517,3842.2,3842.1,0.45770001]
[1753964237816,10.508,3842.2,3842.1,1.66340001]
[1753964237995,3.991,3842.2,3842.1,1.66340001]
[1753964238194,3.991,3842.2,3842.1,2.35031436]
[1753964238916,6.515,3842.9,3842.1,2.35031436]
[1753964239154,0.1304,3842.7,3842.2,0.8571]
[1753964239358,0.1304,3842.7,3842.1,3.5394433]
[1753964239359,3.991,3842.6,3842.1,3.5394433]
[1753964239661,3.991,3842.6,3842.3,0.8571]
[1753964239814,0.1304,3842.7,3842.3,0.8571]
[1753964240020,0.1304,3842.7,3842.4,0.8571]
[1753964240221,0.1304,3842.7,3842.2,0.4577]
[1753964240546,3.991,3842.6,3842.2,0.4577]
[1753964240745,3.991,3842.6,3842.1,0.93670001]
[1753964240958,0.1304,3842.7,3842.3,0.8571]
[1753964241130,3.991,3842.6,3842.3,0.8571]
[1753964241454,3.991,3842.6,3842.4,0.8571]
[1753964241661,3.991,3842.6,3842.4,0.3994]
[1753964241959,0.1304,3842.7,3842.5,0.8571]
[1753964242138,3.991,3842.6,3842.5,0.8571]
[1753964242746,6.991,3842.6,3842.5,0.4577]
[1753964243778,9.59340462,3842.6,3842.2,0.3994]
[1753964243936,12.11748228,3842.5,3842.2,0.4577]
[1753964244143,3.991,3842.4,3842.2,0.4577]
[1753964244355,3.991,3842.4,3842.1,0.80630001]
[1753964244759,3.991,3842.4,3842.1,1.26400001]
[1753964244943,6.59354862,3842.4,3842.1,0.80630001]
[1753964245143,6.59354862,3842.4,3842.2,0.4577]
[1753964246358,6.59354228,3842.4,3842.2,0.4577]
[1753964246682,2.60260781,3842.3,3842.2,0.4577]
[1753964246838,6.59355897,3842.4,3842.2,0.4577]
[1753964248176,6.59355897,3842.4,3842.1,0.80730001]
[1753964248475,6.59355897,3842.4,3842.1,1.26500001]
[1753964250045,6.59354616,3842.4,3842.1,1.26500001]
[1753964250884,3.991,3842.4,3842.1,1.26500001]
[1753964251040,6.59354638,3842.4,3842.1,1.26500001]
[1753964252389,2.60264692,3842.3,3842.1,1.26500001]
[1753964252586,3.991,3842.2,3842.1,1.26500001]
[1753964253162,2.60255801,3842.4,3842.1,1.26500001]
[1753964253362,3.991,3842.3,3842.1,1.26500001]
[1753964253889,7.0494131,3842.3,3842.1,0.80730001]
[1753964254188,7.04943072,3842.3,3842.1,0.00100001]
[1753964254406,3.05847555,3842.2,3842.1,0.00100001]
[1753964255177,6.72403162,3842.3,3842.1,0.00100001]
[1753964255688,0.24332357,3842.2,3842.1,0.00100001]
[1753964255987,3.33300166,3842.2,3842.1,0.00100001]
[1753964256175,6.77469912,3842.2,3842.1,0.00100001]
[1753964257886,6.53137555,3842.2,3842.1,0.00100001]
[1753964262899,11.41856768,3842.2,3842.1,0.00100001]
[1753964265090,11.55036645,3842.2,3842.1,0.00100001]
[1753964266787,8.9476909,3842.2,3842.1,0.00100001]
[1753964269407,8.9476909,3842.2,3841.2,0.8364]
[1753964269408,35.742,3842.1,3836.3,1.36102224]
[1753964269720,3.55,3839.6,3838.0,0.437]
[1753964269872,5.43719213,3839.3,3838.0,0.437]
[1753964270072,15.56156006,3839.3,3838.0,0.437]
[1753964270272,4.88719213,3838.2,3837.9,0.7821]
[1753964270524,4.071,3838.1,3837.9,0.7821]
[1753964270675,6.522,3838.0,3837.4,0.7901]
[1753964270867,4.88719213,3837.8,3837.4,0.7901]
[1753964271087,6.522,3838.0,3837.4,0.95305]
[1753964271313,4.074,3837.9,3837.5,0.8394]
[1753964271612,4.074,3838.0,3837.6,0.8394]
[1753964271811,4.073,3837.9,3837.6,0.8394]
[1753964271987,4.073,3837.9,3837.4,0.7901]
[1753964272165,11.40919213,3838.5,3837.5,0.8394]
[1753964272505,3.0,3838.3,3837.6,0.59995]
[1753964272704,4.073,3838.2,3837.6,0.59995]
[1753964273174,4.073,3838.2,3837.7,0.8394]
[1753964273496,4.073,3838.2,3837.8,0.8394]
[1753964273694,4.071,3838.2,3837.4,0.7901]
[1753964273886,4.071,3838.2,3837.5,0.437]
[1753964274083,4.071,3838.2,3837.5,0.59995]
[1753964274484,0.4558,3838.1,3837.5,0.59995]
[1753964274688,6.9778,3838.1,3837.5,0.16295]
[1753964275090,4.07,3838.0,3837.5,0.16295]
[1753964275607,3.0,3837.9,3837.4,0.7901]
[1753964276012,3.4558,3837.9,3837.4,1.2271]
[1753964276180,0.4558,3837.8,3837.4,0.7901]
[1753964276795,3.0,3837.9,3837.4,1.2271]
[1753964277208,3.4558,3837.9,3837.4,1.2271]
[1753964278114,0.4558,3837.8,3837.4,0.7901]
[1753964278316,6.523,3837.7,3837.4,0.7901]
[1753964278491,6.523,3837.7,3837.4,1.2271]
[1753964278698,6.523,3837.7,3837.5,0.8394]
[1753964279021,6.523,3837.7,3837.6,0.8394]
[1753964279721,6.523,3837.7,3837.6,0.437]
[1753964279897,6.523,3837.7,3837.4,0.7901]
[1753964280097,6.523,3837.7,3837.5,0.437]
[1753964280298,6.523,3837.7,3837.4,0.7901]
[1753964280630,7.305017,3838.1,3837.6,0.437]
[1753964280812,6.6524,3838.1,3837.7,0.8394]
[1753964281016,6.522,3838.1,3837.8,0.8394]
[1753964281214,6.522,3838.1,3837.9,0.437]
[1753964281417,6.522,3838.1,3837.5,0.1304]
[1753964281592,6.522,3838.1,3838.0,0.437]
[1753964282823,6.522,3838.1,3837.7,0.5328]
[1753964282997,6.522,3838.1,3837.8,0.437]
[1753964283203,6.522,3838.1,3837.7,0.5328]
[1753964283404,6.522,3838.1,3837.9,0.452]
[1753964283600,6.521,3838.7,3838.0,0.452]
[1753964283799,7.1934,3838.6,3838.0,0.5824]
[1753964283999,7.1934,3838.6,3838.1,0.8286]
[1753964284237,7.1934,3838.6,3838.1,1.2806]
[1753964284526,7.1934,3838.6,3838.2,0.452]
[1753964285826,7.6746,3838.6,3838.2,0.452]
[1753964286124,7.6746,3838.6,3838.1,0.8286]
[1753964286619,7.6746,3838.6,3838.1,1.2806]
[1753964287124,7.1924,3838.6,3838.2,0.452]
[1753964287702,4.1924,3838.6,3838.2,0.452]
[1753964287912,6.52,3839.1,3838.3,0.8544]
[1753964288113,6.52,3839.1,3838.2,0.20739387]
[1753964288114,0.19764853,3839.0,3838.7,0.1304]
[1753964288432,0.4812,3838.9,3838.1,0.8286]
[1753964288638,1.0809,3838.9,3838.3,0.1304]
[1753964288938,0.4812,3838.8,3838.3,0.1304]
[1753964289097,0.5997,3838.9,3838.3,0.1304]
[1753964289302,0.4812,3838.7,3838.3,0.1304]
[1753964290036,0.5997,3838.9,3838.3,0.1304]
[1753964290332,0.4812,3838.6,3838.1,0.8296]
[1753964290538,0.9505,3838.5,3838.1,0.001]
[1753964291035,0.9505,3838.4,3838.1,0.001]
[1753964291402,0.9505,3838.3,3838.1,0.001]
[1753964291602,0.4812,3838.3,3838.1,0.001]
[1753964291802,0.4812,3838.2,3838.1,0.001]
[1753964293707,0.9505,3838.2,3838.1,0.001]
[1753964294915,0.4812,3838.2,3838.1,0.001]
[1753964295451,0.72326429,3838.2,3838.1,0.001]
[1753964296464,1.32296429,3838.2,3838.1,0.001]
[1753964296860,9.56796072,3838.2,3838.1,0.001]
[1753964297360,9.81006266,3838.2,3838.1,0.001]
[1753964297560,9.56796072,3838.2,3838.1,0.001]
[1753964298651,7.42746429,3838.2,3838.1,0.001]
[1753964298854,8.37796429,3838.2,3838.1,0.001]
[1753964299230,8.37808948,3838.2,3838.1,0.001]
[1753964299831,7.90878948,3838.2,3838.1,0.001]
[1753964300330,8.37808948,3838.2,3838.1,0.001]
[1753964302168,8.37807964,3838.2,3838.1,0.001]
[1753964302547,8.37805571,3838.2,3838.1,0.001]
[1753964302861,10.74128794,3838.2,3838.1,0.001]
[1753964303062,10.98343702,3838.2,3838.1,0.001]
[1753964303567,10.74128794,3838.2,3838.1,0.001]
[1753964304080,10.98340565,3838.2,3838.1,0.001]
[1753964304231,10.74128794,3838.2,3838.1,0.001]
[1753964304928,11.54538794,3838.2,3838.1,0.001]
[1753964305129,12.09538794,3838.2,3838.1,0.001]
[1753964305544,12.47025867,3838.2,3838.1,1e-08]
[1753964305747,6.95975949,3837.8,3837.7,0.001]
[1753964305960,22.8098256,3837.8,3837.7,0.001]
[1753964306165,0.8041,3837.4,3837.0,0.001]
[1753964306371,11.85686078,3837.1,3837.0,0.001]
[1753964306672,3.55,3836.4,3835.0,1.2484]
[1753964306876,0.1304,3835.3,3835.0,0.97452]
[1753964307033,2.60749134,3835.2,3834.7,0.5824]
[1753964307229,0.4812,3835.1,3834.6,0.7964]
[1753964307575,0.1304,3835.0,3834.6,1.2484]
[1753964307785,0.1304,3835.0,3834.9,2.60762992]
[1753964308002,10.586,3835.2,3834.9,2.60762992]
[1753964308003,4.06,3835.5,3835.3,2.60735039]
[1753964308290,4.06,3835.5,3835.3,3.05935039]
[1753964308494,0.1304,3835.6,3835.1,0.5328]
[1753964308692,0.1304,3835.6,3835.4,0.452]
[1753964308905,4.06,3835.5,3835.4,3.05928998]
[1753964309385,4.06,3835.5,3835.3,0.4024]
[1753964309386,4.06,3835.5,3835.3,2.60735118]
[1753964309753,4.06,3835.5,3835.1,3.18983047]
[1753964309989,4.06,3835.5,3835.2,2.60741585]
[1753964310150,4.5412,3835.5,3835.1,0.1304]
[1753964310350,4.06,3835.5,3835.1,0.1304]
[1753964310561,4.06,3835.5,3835.4,2.60728998]
[1753964311300,4.06,3835.5,3835.2,3.05936855]
[1753964311499,4.06,3835.5,3835.2,0.452]
[1753964311808,4.06,3835.5,3835.2,2.60741317]
[1753964311960,4.06,3835.5,3835.1,2.6074764]
[1753964311961,4.5412,3835.5,3835.1,2.6074764]
[1753964312150,4.5412,3835.5,3835.0,0.1304]
[1753964312358,0.4812,3835.4,3835.1,0.001]
[1753964312659,4.06,3835.5,3835.3,2.60735796]
[1753964312958,4.06,3835.5,3835.1,2.60848933]
[1753964313352,4.06,3835.5,3835.1,0.001]
[1753964313591,4.06,3835.5,3835.3,2.60734487]
[1753964314000,4.06,3835.5,3835.2,2.60740156]
[1753964314159,4.06,3835.5,3835.1,2.60847309]
[1753964314360,4.06,3835.5,3835.1,0.4519]
[1753964314559,4.06,3835.5,3835.2,2.60742538]
[1753964314776,4.06,3835.5,3835.3,2.60734205]
[1753964314972,4.06,3835.5,3835.1,0.4519]
[1753964315176,4.06,3835.5,3835.1,3.05936071]
[1753964315374,4.06,3835.5,3835.3,2.60731086]
[1753964316111,4.06,3835.5,3835.2,2.60742594]
[1753964316411,4.06,3835.5,3835.3,2.6073153]
[1753964316709,4.06,3835.5,3835.2,3.05830166]
[1753964317014,4.37465206,3835.4,3835.1,0.001]
[1753964317302,10.7104,3835.3,3835.1,0.001]
[1753964317596,11.2003,3835.3,3835.1,0.001]
[1753964317794,10.7104,3835.3,3835.1,0.001]
[1753964317959,0.4899,3835.2,3835.1,0.001]
[1753964318457,10.7104,3835.3,3835.1,0.001]
[1753964319069,0.4899,3835.2,3835.1,0.001]
[1753964319271,0.9232,3835.2,3835.1,0.001]
[1753964319471,0.4899,3835.2,3835.1,0.001]
[1753964320068,7.4502,3835.2,3835.1,0.001]
[1753964324363,10.05762594,3835.2,3835.1,0.001]
[1753964324576,13.82062594,3835.2,3835.1,0.001]
[1753964325102,13.89032594,3835.2,3835.1,0.001]
[1753964327460,10.3597,3835.2,3835.1,0.001]
[1753964327663,13.45702594,3835.2,3835.1,0.001]
[1753964327902,13.58742594,3835.2,3835.1,0.001]
[1753964328101,17.63342594,3835.2,3835.1,0.001]
[1753964328301,18.06672594,3835.2,3835.1,0.001]
[1753964329122,14.02072594,3835.2,3835.1,0.001]
[1753964329402,18.06772594,3835.2,3835.1,0.001]
[1753964331106,13.58742594,3835.2,3835.1,0.001]
[1753964331307,9.527,3835.2,3835.1,0.001]
[1753964331611,6.527,3835.2,3835.1,0.4519]
[1753964331817,0.1304,3835.5,3835.1,1.16025795]
[1753964331967,6.526,3835.7,3835.2,1.66097425]
[1753964332171,0.19189765,3836.0,3835.6,2.73753055]
[1753964332407,0.1304,3836.3,3836.0,2.60685261]
[1753964332712,0.1304,3836.3,3835.8,3.56650376]
[1753964332931,0.1304,3836.3,3836.1,2.60676533]
[1753964333139,0.1304,3836.3,3835.9,3.46025012]
[1753964333337,0.1304,3836.3,3836.0,3.46016956]
[1753964333515,0.1304,3836.3,3836.0,0.8533]
[1753964333710,0.1304,3836.3,3835.9,2.60695012]
[1753964333912,0.1304,3836.3,3835.9,3.81689513]
[1753964334137,0.1304,3836.3,3836.0,0.8533]
[1753964334309,0.1304,3836.3,3835.8,0.9595]
[1753964334504,0.4899,3836.2,3835.8,0.8291]
[1753964334705,0.1304,3836.1,3835.8,0.8291]
[1753964334962,0.1304,3836.1,3835.5,0.1304]
[1753964335112,0.1304,3836.1,3835.9,2.6069253]
[1753964336453,0.1304,3836.1,3836.0,2.60688216]
[1753964336684,0.1304,3836.1,3836.0,3.05778216]
[1753964336937,0.1304,3836.1,3836.0,3.46018216]
[1753964337099,0.1304,3836.5,3836.3,2.60666137]
[1753964337304,0.1304,3836.5,3836.2,2.60672685]
[1753964337527,0.1304,3836.5,3836.2,3.05762685]
[1753964338347,0.1304,3836.5,3836.2,0.4509]
[1753964338540,0.1304,3836.5,3836.1,2.60680347]
[1753964339220,0.1304,3836.5,3836.1,0.4509]
[1753964339422,0.1304,3836.5,3836.1,3.05770733]
[1753964339634,0.1304,3836.5,3836.2,2.60673728]
[1753964340129,0.1304,3836.5,3836.1,0.4509]
[1753964340130,0.1304,3836.5,3836.1,3.05769112]
[1753964340333,0.1304,3836.5,3836.2,2.60674427]
[1753964340534,0.1304,3836.5,3836.2,0.4509]
[1753964340845,0.1304,3836.5,3836.4,2.60661036]
[1753964341408,0.1304,3836.5,3836.3,3.05755813]
[1753964341607,0.37362183,3836.5,3836.3,3.05755813]
[1753964342039,0.24322183,3836.4,3836.3,2.60665813]
[1753964342815,0.24317126,3836.4,3836.3,2.60665813]
[1753964343713,0.24317126,3836.4,3836.3,3.46985813]
[1753964343908,0.5,3836.7,3836.6,2.60647448]
[1753964344269,0.74310752,3836.7,3836.6,3.38373922]
[1753964344573,0.74310752,3836.7,3836.6,4.35127448]
[1753964344776,0.74310752,3836.7,3836.6,6.33370443]
[1753964345235,0.5,3836.7,3836.6,6.33370443]
[1753964347733,0.002,3837.0,3836.9,2.60627068]
[1753964347989,0.002,3837.4,3837.3,2.605999]
[1753964348162,0.002,3837.4,3837.3,15.671637]
[1753964348367,0.002,3837.4,3837.3,17.89042915]
[1753964348576,0.002,3837.4,3837.3,18.75362915]
[1753964349839,0.002,3837.4,3837.3,21.75362915]
[1753964350762,0.002,3837.4,3837.3,22.30362915]
[1753964351435,0.6218,3838.7,3838.6,2.60511644]
[1753964351635,0.6164347,3838.7,3838.6,2.60511644]
[1753964351864,0.9774347,3838.7,3838.6,2.60511644]
[1753964352303,0.9774347,3838.7,3838.5,2.60516256]
[1753964352496,0.4860347,3838.6,3838.3,7.53631146]
[1753964352674,0.48594702,3838.5,3838.3,7.53631146]
[1753964352874,0.48594702,3838.4,3838.3,7.53631146]
[1753964354088,0.48591933,3838.4,3838.3,7.53631146]
[1753964354866,0.24294582,3838.4,3838.3,7.53631146]
[1753964356569,0.48581868,3838.4,3838.3,7.53631146]
[1753964356970,0.979146,3838.4,3838.3,7.53631146]
[1753964358911,0.487746,3838.4,3838.3,7.53631146]
[1753964359122,0.487746,3838.4,3838.3,8.9068428]
[1753964359625,0.4878129,3838.4,3838.3,8.9068428]
[1753964359923,0.9792129,3838.4,3838.3,7.53631146]
[1753964360114,0.97928164,3838.4,3838.3,7.53631146]
[1753964360726,0.48788164,3838.4,3838.3,7.53631146]
[1753964362909,0.48796221,3838.4,3838.3,7.53631146]
[1753964363703,0.97936221,3838.4,3838.3,7.53631146]
[1753964365527,0.73634174,3838.4,3838.3,7.53631146]
[1753964366335,0.4934,3838.4,3838.3,7.53631146]
[1753964367042,0.97928354,3838.4,3838.3,7.53631146]
[1753964367450,0.48788354,3838.4,3838.3,9.13559138]
[1753964367614,0.48788354,3838.4,3838.3,14.48927932]
[1753964367819,0.48788354,3838.4,3838.3,14.31966997]
[1753964368035,0.48787675,3838.4,3838.3,14.31966997]
[1753964368229,0.48787675,3838.4,3838.3,13.85886997]
[1753964368768,0.24494177,3838.4,3838.3,13.85886997]
[1753964368966,0.002,3838.4,3838.3,13.85886997]
[1753964369520,0.002,3838.4,3838.3,4.76139065]
[1753964369751,0.4934,3838.4,3838.3,7.36671071]
[1753964369952,0.73629458,3838.4,3838.3,7.36671071]
[1753964370523,0.73629458,3838.4,3838.3,4.76139065]
[1753964370869,1.20949458,3838.4,3838.3,4.76139065]
[1753964371071,1.20949458,3838.4,3838.3,7.36671071]
[1753964371072,1.45240881,3838.4,3838.3,7.36671071]
[1753964371368,1.45240881,3838.4,3838.3,4.76139065]
[1753964371567,1.45240881,3838.4,3838.3,7.36671071]
[1753964372740,1.45240881,3838.4,3838.3,4.76139065]
[1753964373348,1.45240881,3838.4,3838.3,7.36671071]
[1753964373830,1.45240881,3838.4,3838.3,4.76139065]
[1753964374364,1.45240881,3838.4,3838.3,7.36671071]
[1753964374744,1.45240881,3838.4,3838.3,4.76139065]
[1753964375236,2.24160881,3838.4,3838.3,4.76139065]
[1753964376138,5.34457359,3838.4,3838.3,4.76139065]
[1753964376360,9.26032141,3838.4,3838.0,0.1304]
[1753964376534,2.6054985,3838.1,3837.7,4.594]
[1753964376732,2.60565949,3837.8,3837.7,4.594]
[1753964376946,2.20400881,3837.8,3837.7,4.594]
[1753964377170,2.33440881,3837.8,3837.6,4.59]
[1753964377478,1.41870881,3837.7,3837.6,4.59]
[1753964377691,1.17579458,3837.7,3837.6,4.59]
[1753964379494,1.17579458,3837.7,3837.5,4.529]
[1753964379663,0.24289458,3837.6,3837.5,4.529]
[1753964379856,0.9329,3837.6,3837.5,4.529]
[1753964380172,1.17579458,3837.6,3837.5,4.529]
[1753964381182,0.72359458,3837.6,3837.5,7.13486319]
[1753964381384,0.24289458,3837.6,3837.5,8.57128384]
[1753964381575,0.1304,3838.1,3837.7,2.60572738]
[1753964381774,0.24331908,3838.0,3837.8,4.532]
[1753964381983,0.24331908,3837.9,3837.8,4.532]
[1753964382186,0.72401908,3837.9,3837.8,4.532]
[1753964382373,0.72401908,3837.9,3837.8,7.13765949]
[1753964383491,0.72401908,3837.9,3837.8,4.532]
[1753964383995,0.72401908,3837.9,3837.8,7.13765949]
[1753964385676,0.24331908,3837.9,3837.8,7.13765949]
[1753964385877,0.6111,3838.1,3838.0,2.60552371]
[1753964386080,0.37368521,3838.1,3838.0,2.60552371]
[1753964386312,0.85438521,3838.1,3838.0,2.60552371]
[1753964387373,0.85438521,3838.1,3837.9,2.60557584]
[1753964387567,0.4807,3838.0,3837.9,2.60557584]
[1753964388713,11.15183802,3838.3,3838.1,2.60543988]
[1753964388910,0.1304,3838.2,3838.1,2.60543988]
[1753964389110,0.6111,3838.2,3838.0,2.60550169]
[1753964389314,0.1304,3838.2,3838.0,7.26150169]
[1753964389536,0.4807,3838.1,3838.0,7.26150169]
[1753964389762,6.522,3838.3,3838.1,2.60545582]
[1753964390043,0.002,3838.4,3838.3,2.60532006]
[1753964390936,0.4827,3838.4,3838.3,2.60532006]
[1753964391937,0.4827,3838.4,3838.2,4.711]
[1753964392112,0.4807,3838.3,3838.2,4.711]
[1753964392312,0.4807,3838.3,3838.2,7.31636812]
[1753964392709,0.4807,3838.3,3838.2,4.707]
[1753964393044,1.0633,3838.3,3838.1,4.707]
[1753964393244,0.4522,3838.2,3838.1,4.707]
[1753964393451,0.9329,3838.2,3838.0,7.30452341]
[1753964394148,0.4807,3838.1,3838.0,7.30452341]